bitfinex-derivatives/quotes_BTCF0:USTF0_20250320
["timestamp","ask_amount","ask_price","bid_price","bid_amount"]
[1742473712915,0.93303662,85474.0,85473.0,0.28052158]
[1742473713116,0.9210391,85474.0,85473.0,0.28052158]
[1742473713825,0.92982773,85474.0,85473.0,0.28052158]
[1742473716223,0.1170404,85473.0,85472.0,4e-05]
[1742473716423,0.3770404,85473.0,85472.0,4e-05]
[1742473716730,0.11705,85466.0,85465.0,4e-05]
[1742473716923,0.58785,85466.0,85465.0,4e-05]
[1742473717531,0.65395,85466.0,85465.0,4e-05]
[1742473717726,0.55395,85466.0,85465.0,4e-05]
[1742473718122,0.65395,85466.0,85465.0,4e-05]
[1742473719436,0.65295,85466.0,85465.0,4e-05]
[1742473722431,0.1170541,85463.0,85462.0,0.0702]
[1742473722635,0.1270541,85463.0,85462.0,0.0702]
[1742473722936,0.1270541,85463.0,85462.0,0.1872555]
[1742473723235,0.1270541,85463.0,85462.0,0.0702]
[1742473723619,0.1270541,85463.0,85462.0,0.07112]
[1742473723826,0.1258159,85463.0,85462.0,0.07112]
[1742473724426,0.1258159,85463.0,85462.0,0.1881755]
[1742473724734,0.1268159,85463.0,85462.0,0.1881755]
[1742473724927,0.1268159,85463.0,85462.0,0.1891755]
[1742473727828,0.1268159,85463.0,85462.0,0.1882555]
[1742473728636,0.1268159,85463.0,85462.0,0.1891755]
[1742473728831,0.011,85463.0,85462.0,0.1891755]
[1742473729037,0.175562,85473.0,85472.0,0.1170391]
[1742473729225,0.185562,85473.0,85472.0,0.2206391]
[1742473731531,0.185562,85473.0,85472.0,0.2216391]
[1742473731738,0.285562,85473.0,85472.0,0.2216391]
[1742473732038,0.285562,85473.0,85472.0,0.23162371]
[1742473732240,0.285562,85473.0,85472.0,0.23262371]
[1742473732830,0.285562,85473.0,85472.0,0.1056]
[1742473733035,0.317762,85473.0,85472.0,0.1056]
[1742473733435,0.317762,85473.0,85472.0,0.10652]
[1742473734834,0.317762,85473.0,85383.0,0.16757898]
[1742473734835,0.1170596,85459.0,85458.0,0.3042042]
[1742473735145,0.2170651,85455.0,85454.0,0.0348]
[1742473735330,0.4770651,85455.0,85454.0,0.0348]
[1742473736034,0.4760651,85455.0,85454.0,0.0348]
[1742473736235,0.48799706,85455.0,85454.0,0.0348]
[1742473736433,0.48799706,85455.0,85454.0,0.0358]
[1742473737945,0.1170747,85448.0,85447.0,0.033]
[1742473738146,0.2170747,85448.0,85447.0,0.033]
[1742473738545,0.22728499,85448.0,85447.0,0.033]
[1742473738846,0.29358499,85448.0,85447.0,0.033]
[1742473739437,0.0585426,85441.0,85420.0,0.83776899]
[1742473739747,0.2170911,85436.0,85435.0,0.0339]
[1742473739940,0.1270911,85436.0,85435.0,0.0339]
[1742473740948,0.1603911,85436.0,85435.0,0.0339]
[1742473741157,0.2603911,85436.0,85435.0,0.0339]
[1742473741845,0.27223721,85436.0,85435.0,0.0339]
[1742473742044,0.27223729,85436.0,85435.0,0.0339]
[1742473742458,0.53303729,85436.0,85435.0,0.0339]
[1742473743147,0.56633729,85436.0,85435.0,0.0339]
[1742473743453,0.1170939,85434.0,85433.0,4e-05]
[1742473743661,0.37894009,85434.0,85433.0,4e-05]
[1742473743960,0.1171062,85425.0,85419.0,0.42042405]
[1742473744155,0.117113,85420.0,85419.0,0.41906405]
[1742473744354,0.35184619,85420.0,85409.0,0.48822978]
[1742473744654,0.1171268,85410.0,85409.0,0.42022676]
[1742473744848,0.1271268,85410.0,85409.0,0.42022676]
[1742473745951,0.2271268,85410.0,85409.0,0.42022676]
[1742473746651,0.1589268,85410.0,85409.0,0.42022676]
[1742473747158,0.2589268,85410.0,85409.0,0.42022676]
[1742473747358,0.2589268,85410.0,85409.0,0.48772676]
[1742473747755,0.1589268,85410.0,85409.0,0.45352676]
[1742473748751,0.1589268,85410.0,85409.0,0.42022676]
[1742473748965,0.1171309,85407.0,85406.0,0.0333]
[1742473749159,0.1371309,85407.0,85406.0,0.0333]
[1742473750259,0.0585677,85404.0,85400.0,0.10004]
[1742473750462,0.0585785,85388.0,85380.0,0.3608]
[1742473750760,0.1585722,85398.0,85380.0,0.40955811]
[1742473750963,0.0585759,85392.0,85388.0,0.06316899]
[1742473751160,0.0585798,85387.0,85380.0,0.4347356]
[1742473751462,0.1171626,85384.0,85381.0,0.1757485]
[1742473751653,0.1171627,85385.0,85384.0,0.1171611]
[1742473752760,0.0585782,85389.0,85386.0,0.1171569]
[1742473753165,0.1171611,85385.0,85382.0,0.0585822]
[1742473753367,0.1171638,85383.0,85382.0,0.03]
[1742473753658,0.1171638,85383.0,85382.0,0.0637]
[1742473753865,0.1171638,85383.0,85382.0,0.1808652]
[1742473754164,0.0585798,85387.0,85384.0,0.1757403]
[1742473754460,0.0585798,85387.0,85386.0,0.1171597]
[1742473754461,0.1757393,85387.0,85386.0,0.1171597]
[1742473755157,0.1757393,85387.0,85386.0,0.1825597]
[1742473755565,0.0585798,85387.0,85386.0,0.1825597]
[1742473756359,0.0585784,85389.0,85388.0,0.1171569]
[1742473756858,0.1171583,85387.0,85386.0,0.0654]
[1742473757165,0.1171583,85387.0,85386.0,0.1825597]
[1742473759063,0.0585784,85389.0,85388.0,0.1171569]
[1742473759268,0.0585784,85389.0,85388.0,0.4779569]
[1742473760864,0.0585766,85391.0,85390.0,0.1171542]
[1742473761268,0.3608,85401.0,85390.0,0.1171542]
[1742473761269,0.175711,85404.0,85403.0,0.117132]
[1742473761461,0.2442811,85404.0,85403.0,0.117132]
[1742473761661,0.1171391,85402.0,85401.0,0.1171381]
[1742473761862,0.1271391,85402.0,85401.0,0.1490381]
[1742473762559,0.1612391,85402.0,85401.0,0.1825381]
[1742473763061,0.1612391,85402.0,85401.0,0.2170381]
[1742473763261,0.1632391,85402.0,85401.0,0.2170381]
[1742473763854,0.1,85399.0,85393.0,0.00017565]
[1742473764173,0.1171473,85396.0,85395.0,0.1171467]
[1742473764469,0.1171473,85396.0,85395.0,0.1513467]
[1742473764664,0.1501473,85396.0,85395.0,0.1513467]
[1742473765466,0.033,85396.0,85395.0,0.5121467]
[1742473765973,0.150146,85396.0,85395.0,0.5121467]
[1742473766763,0.150146,85396.0,85395.0,0.5467467]
[1742473769666,0.033,85396.0,85395.0,0.5467467]
[1742473769863,0.0145494,85424.0,85409.0,0.1171281]
[1742473770060,0.01057676,85414.0,85409.0,0.1171281]
[1742473770377,0.11730245,85410.0,85409.0,0.1171281]
[1742473770567,0.11730245,85410.0,85409.0,0.1847281]
[1742473771170,0.11730245,85410.0,85409.0,0.2169281]
[1742473771375,0.12030245,85410.0,85409.0,0.2169281]
[1742473771575,0.00317565,85410.0,85409.0,0.2169281]
[1742473771879,0.03487565,85410.0,85409.0,0.2169281]
[1742473772177,0.19050245,85410.0,85409.0,0.1171281]
[1742473772373,0.22470245,85410.0,85409.0,0.1171281]
[1742473772967,0.22270245,85410.0,85409.0,0.1171281]
[1742473774081,0.22270245,85410.0,85409.0,0.1504281]
[1742473774575,0.18850245,85410.0,85409.0,0.2155281]
[1742473779380,0.07137565,85410.0,85409.0,0.2155281]
[1742473780283,0.18850245,85410.0,85409.0,0.2155281]
[1742473780481,0.07137565,85410.0,85409.0,0.2155281]
[1742473780874,0.18850245,85410.0,85409.0,0.1171281]
[1742473782387,0.22280245,85410.0,85409.0,0.1171281]
[1742473782777,0.22280245,85410.0,85409.0,0.1516281]
[1742473783182,0.07137565,85410.0,85409.0,0.1516281]
[1742473783381,0.07137565,85410.0,85409.0,0.1171281]
[1742473784191,0.18850245,85410.0,85409.0,0.1171281]
[1742473786688,0.1171281,85409.0,85408.0,0.36084]
[1742473787189,0.1836281,85409.0,85408.0,0.36084]
[1742473788285,0.1856281,85409.0,85408.0,0.36084]
[1742473788782,0.1876281,85409.0,85408.0,0.36084]
[1742473789493,0.19836364,85409.0,85408.0,0.4779695]
[1742473789683,0.19836364,85409.0,85408.0,0.4779295]
[1742473790986,0.19836364,85409.0,85408.0,0.5107295]
[1742473791187,0.19836364,85409.0,85408.0,0.4779295]
[1742473794082,0.19836364,85409.0,85408.0,0.5118295]
[1742473795190,0.0705,85409.0,85408.0,0.5118295]
[1742473795388,0.1876281,85409.0,85408.0,0.5794295]
[1742473796382,0.1876281,85409.0,85408.0,0.5118295]
[1742473797690,0.1876281,85409.0,85408.0,0.5451295]
[1742473799491,0.1876281,85409.0,85408.0,0.4779295]
[1742473799996,0.1876281,85409.0,85408.0,0.5104295]
[1742473800395,0.0705,85409.0,85408.0,0.5437295]
[1742473801388,0.1876281,85409.0,85408.0,0.5437295]
[1742473801702,0.20991245,85409.0,85408.0,0.5437295]
[1742473802082,0.32704055,85409.0,85408.0,0.5437295]
[1742473802282,0.243854,85421.0,85408.0,0.7066]
[1742473802283,0.1171206,85416.0,85408.0,0.7066]
[1742473802492,0.1171295,85408.0,85407.0,4e-05]
[1742473802683,0.1171295,85408.0,85407.0,0.4779309]
[1742473802994,0.1512281,85409.0,85408.0,0.1171295]
[1742473803185,0.1171295,85408.0,85407.0,0.4779295]
[1742473803383,0.1171295,85408.0,85407.0,0.3608]
[1742473803583,0.1171295,85408.0,85407.0,0.4779309]
[1742473803799,0.1191295,85408.0,85407.0,0.4779309]
[1742473804094,0.3811295,85408.0,85407.0,0.4779309]
[1742473804290,0.2549295,85408.0,85407.0,0.4779309]
[1742473804486,0.2549295,85408.0,85407.0,0.3608]
[1742473804691,0.4949295,85408.0,85407.0,0.3608]
[1742473804893,0.49998879,85408.0,85407.0,0.4779309]
[1742473805601,0.59998879,85408.0,85407.0,0.4779309]
[1742473805895,0.59998879,85408.0,85407.0,0.3608]
[1742473806300,0.1171309,85407.0,85406.0,4e-05]
[1742473806499,0.52474555,85407.0,85406.0,4e-05]
[1742473806696,0.52474555,85407.0,85390.0,0.0348]
[1742473806697,0.1171391,85401.0,85390.0,0.1027]
[1742473806905,0.24875307,85401.0,85390.0,0.0694]
[1742473807289,0.14875307,85401.0,85390.0,0.0694]
[1742473807490,0.14875307,85401.0,85400.0,0.22811407]
[1742473807691,0.1171487,85394.0,85386.0,0.41919825]
[1742473807896,0.1171583,85387.0,85386.0,0.41919825]
[1742473808200,0.1171665,85381.0,85380.0,4e-05]
[1742473808402,0.1271665,85381.0,85380.0,4e-05]
[1742473809393,0.1171775,85373.0,85372.0,0.42156535]
[1742473809697,0.1271775,85373.0,85372.0,0.42156535]
[1742473809898,0.1271775,85373.0,85372.0,0.45346535]
[1742473810405,0.1261775,85373.0,85372.0,0.60514425]
[1742473810602,0.01097281,85381.0,85378.0,0.0585847]
[1742473810806,0.1171697,85379.0,85378.0,0.0585847]
[1742473811191,0.1856697,85379.0,85378.0,0.0585847]
[1742473811895,0.0685,85379.0,85378.0,0.0585847]
[1742473812098,0.0585786,85388.0,85384.0,0.1171624]
[1742473812291,0.1270786,85388.0,85384.0,0.1171624]
[1742473812496,0.48861185,85385.0,85384.0,0.1171624]
[1742473812695,0.1171652,85383.0,85382.0,0.1171643]
[1742473812897,0.1171652,85383.0,85378.0,0.3618]
[1742473812898,0.0585839,85381.0,85378.0,0.3618]
[1742473813110,0.1171693,85379.0,85378.0,0.001]
[1742473813610,0.1171681,85380.0,85379.0,0.1171693]
[1742473813803,0.1171681,85380.0,85379.0,0.1497693]
[1742473814102,0.1171681,85380.0,85379.0,0.1171693]
[1742473814500,0.1509681,85380.0,85379.0,0.1171693]
[1742473814696,0.1841681,85380.0,85379.0,0.1171693]
[1742473815605,0.1171693,85379.0,85378.0,4e-05]
[1742473816106,0.1831693,85379.0,85378.0,0.1172107]
[1742473816606,0.1503623,85386.0,85385.0,0.1171611]
[1742473816811,0.1271623,85386.0,85385.0,0.1171611]
[1742473817104,0.117158,85388.0,85387.0,0.1171583]
[1742473817497,0.150558,85388.0,85387.0,0.1171583]
[1742473817807,0.03277565,85389.0,85387.0,0.1171583]
[1742473817808,0.00017565,85389.0,85388.0,0.1171569]
[1742473818014,0.11733125,85389.0,85388.0,0.1171569]
[1742473818501,0.1171569,85388.0,85387.0,0.3608]
[1742473818701,0.1497569,85388.0,85387.0,0.3608]
[1742473818903,0.2831569,85388.0,85387.0,0.36212]
[1742473819114,0.2831569,85388.0,85387.0,0.3608]
[1742473819308,0.1831569,85388.0,85387.0,0.3608]
[1742473819508,0.2831569,85388.0,85387.0,0.3608]
[1742473819704,0.2120569,85388.0,85387.0,0.3608]
[1742473820099,0.2831569,85388.0,85387.0,0.3608]
[1742473820411,0.2120569,85388.0,85387.0,0.3608]
[1742473820806,0.1851569,85388.0,85387.0,0.3608]
[1742473821006,0.1861569,85388.0,85387.0,0.3608]
[1742473821205,0.2861569,85388.0,85387.0,0.3608]
[1742473821607,0.003,85388.0,85387.0,0.4779583]
[1742473821807,0.0328,85406.0,85399.0,0.0585704]
[1742473822017,0.210154,85411.0,85410.0,0.1171268]
[1742473822311,0.0585654,85408.0,85405.0,0.3608]
[1742473822511,0.1171322,85406.0,85405.0,0.3608]
[1742473822719,0.00872086,85428.0,85410.0,0.1171268]
[1742473823007,0.0325,85426.0,85425.0,0.1171062]
[1742473823214,0.1496048,85426.0,85425.0,0.1171062]
[1742473823608,0.035,85432.0,85431.0,0.117098]
[1742473823912,0.00017565,85434.0,85433.0,0.1170952]
[1742473824703,0.11726955,85434.0,85433.0,0.1170952]
[1742473825211,0.117098,85432.0,85430.0,0.3608]
[1742473825417,0.1756523,85430.0,85429.0,0.4778993]
[1742473825711,0.0347,85433.0,85429.0,0.4778993]
[1742473825916,0.00017565,85434.0,85433.0,0.1170952]
[1742473826218,0.12226955,85434.0,85433.0,0.1170952]
[1742473826412,0.12726955,85434.0,85433.0,0.1170952]
[1742473826710,0.058549,85431.0,85429.0,0.3608]
[1742473826903,0.1515993,85430.0,85429.0,0.4779007]
[1742473827104,0.1862993,85430.0,85429.0,0.4779007]
[1742473827818,0.005,85430.0,85429.0,0.4779007]
[1742473828914,0.01,85430.0,85429.0,0.4779007]
[1742473832415,0.00017565,85434.0,85433.0,0.1170952]
[1742473832918,0.0351,85449.0,85448.0,0.1170747]
[1742473833121,0.0351,85449.0,85448.0,0.4778747]
[1742473833620,0.0351,85449.0,85448.0,0.5109747]
[1742473834216,0.1170733,85450.0,85449.0,0.1170723]
[1742473834413,0.1170733,85450.0,85449.0,0.0344]
[1742473834613,0.0585413,85443.0,85435.0,0.0346]
[1742473834809,0.4778843,85441.0,85438.0,0.0344]
[1742473835012,0.1171158,85422.0,85421.0,0.1756621]
[1742473835524,0.1171056,85426.0,85425.0,0.0585525]
[1742473835817,0.1756696,85423.0,85422.0,0.1171066]
[1742473836013,0.1756696,85423.0,85422.0,0.12594105]
[1742473836819,0.0337,85424.0,85423.0,0.1171089]
[1742473837015,0.0337,85424.0,85423.0,0.1515089]
[1742473838421,0.0347,85424.0,85423.0,0.1515089]
[1742473838724,0.001,85424.0,85423.0,0.1515089]
[1742473839317,0.0347,85424.0,85423.0,0.1515089]
[1742473839519,0.1847076,85424.0,85423.0,0.1515089]
[1742473840427,0.1837076,85424.0,85423.0,0.1515089]
[1742473840620,0.1847076,85424.0,85423.0,0.0344]
[1742473840828,0.1847076,85424.0,85423.0,0.1515089]
[1742473841025,0.1837076,85424.0,85423.0,0.1515089]
[1742473841222,0.1847076,85424.0,85423.0,0.1515089]
[1742473841819,0.1837076,85424.0,85423.0,0.1171089]
[1742473842122,0.1867076,85424.0,85423.0,0.1171089]
[1742473843226,0.1171089,85423.0,85422.0,4e-05]
[1742473843532,0.2271089,85423.0,85422.0,4e-05]
[1742473843732,0.2930089,85423.0,85422.0,4e-05]
[1742473844024,0.2171199,85415.0,85412.0,0.4779234]
[1742473844214,0.1171199,85415.0,85413.0,0.1171215]
[1742473844419,0.2171199,85415.0,85412.0,0.3942]
[1742473844721,0.2171199,85415.0,85413.0,0.1171626]
[1742473844929,0.2119199,85415.0,85413.0,4e-05]
[1742473845224,0.1171213,85414.0,85413.0,4e-05]
[1742473845422,0.1271213,85414.0,85413.0,0.1171626]
[1742473845617,0.1930213,85414.0,85413.0,0.1171626]
[1742473845818,0.1930213,85414.0,85413.0,0.1171226]
[1742473846028,0.1171364,85403.0,85402.0,0.2342682]
[1742473846334,0.1171364,85403.0,85397.0,0.36084]
[1742473846335,0.1171418,85399.0,85398.0,0.1498432]
[1742473846526,0.1171418,85399.0,85398.0,0.1171432]
[1742473847326,0.1171432,85398.0,85397.0,4e-05]
[1742473847625,0.1496432,85398.0,85397.0,4e-05]
[1742473847833,0.1496432,85398.0,85397.0,0.1171846]
[1742473848024,0.1486432,85398.0,85397.0,0.1171846]
[1742473848631,0.2486432,85398.0,85397.0,0.00304]
[1742473848828,0.1486432,85398.0,85397.0,0.00304]
[1742473849122,0.2586432,85398.0,85397.0,0.00304]
[1742473849731,0.2586432,85398.0,85397.0,0.003]
[1742473850628,0.1586432,85398.0,85397.0,0.003]
[1742473851235,0.1586432,85398.0,85397.0,0.1201446]
[1742473851436,0.1586432,85398.0,85397.0,0.003]
[1742473852135,0.1875432,85398.0,85397.0,0.003]
[1742473852341,0.6194432,85398.0,85397.0,0.003]
[1742473853236,0.5194432,85398.0,85397.0,0.003]
[1742473853430,0.6194432,85398.0,85397.0,0.003]
[1742473853741,0.1586432,85398.0,85397.0,0.1201446]
[1742473854538,0.1486432,85398.0,85397.0,0.1558446]
[1742473854734,0.1606432,85398.0,85397.0,0.0387]
[1742473854940,0.1506432,85398.0,85397.0,0.003]
[1742473855132,0.1506432,85398.0,85397.0,0.1201446]
[1742473855641,0.1506432,85398.0,85397.0,0.1559446]
[1742473856235,0.1506432,85398.0,85397.0,0.003]
[1742473856426,0.2506432,85398.0,85397.0,0.003]
[1742473857235,0.4306432,85398.0,85397.0,0.003]
[1742473857437,0.5106432,85398.0,85397.0,0.003]
[1742473857639,0.4395432,85398.0,85397.0,0.003]
[1742473857936,0.5106432,85398.0,85397.0,0.003]
[1742473858139,0.4106432,85398.0,85397.0,0.003]
[1742473858335,0.5106432,85398.0,85397.0,0.003]
[1742473858532,0.4106432,85398.0,85397.0,0.1201446]
[1742473858733,0.4106432,85398.0,85397.0,0.1551446]
[1742473859644,0.1171432,85398.0,85397.0,0.1551446]
[1742473859834,0.1171432,85398.0,85397.0,0.1896446]
[1742473861134,0.1171432,85398.0,85397.0,0.0725]
[1742473861337,0.1171432,85398.0,85397.0,0.1896446]
[1742473861832,0.1171432,85398.0,85397.0,0.2223446]
[1742473863139,0.0332,85399.0,85398.0,0.1171432]
[1742473863336,0.00017555,85411.0,85403.0,0.0585678]
[1742473863538,0.1171281,85409.0,85408.0,0.1756908]
[1742473863845,0.1271281,85409.0,85408.0,0.1756908]
[1742473864034,0.1171281,85409.0,85408.0,0.1756908]
[1742473864535,0.0353,85410.0,85409.0,0.1171281]
[1742473864741,0.00017555,85411.0,85410.0,0.1171268]
[1742473864935,0.17387398,85416.0,85415.0,0.1171199]
[1742473865132,0.17387398,85423.0,85422.0,0.1171103]
[1742473865335,0.17387398,85423.0,85422.0,0.4779103]
[1742473865650,0.20857607,85431.0,85430.0,0.1170993]
[1742473865944,0.20857607,85431.0,85430.0,0.4778993]
[1742473866446,0.00017555,85439.0,85438.0,0.1170884]
[1742473866742,0.00017555,85439.0,85438.0,0.4778884]
[1742473866938,0.1170752,85448.0,85445.0,0.1170788]
[1742473867128,0.0355,85451.0,85445.0,0.1170788]
[1742473867332,0.1170815,85444.0,85443.0,0.1170812]
[1742473868139,0.1170843,85442.0,85441.0,0.1170836]
[1742473868334,0.2170843,85441.0,85440.0,0.0352]
[1742473868543,0.2170843,85441.0,85422.0,0.36097555]
[1742473868544,0.1171089,85423.0,85422.0,0.36097555]
[1742473868853,0.2171089,85423.0,85422.0,0.00017555]
[1742473869141,0.2271089,85423.0,85422.0,0.00017555]
[1742473869737,0.2974089,85423.0,85422.0,0.00017555]
[1742473870535,0.3024089,85423.0,85422.0,0.00017555]
[1742473871535,0.3074089,85423.0,85422.0,0.00017555]
[1742473871939,0.6682089,85423.0,85422.0,0.00017555]
[1742473872338,0.5682089,85423.0,85422.0,0.11728585]
[1742473872539,0.6335089,85423.0,85422.0,0.15118585]
[1742473872748,0.5335089,85423.0,85422.0,0.15118585]
[1742473872932,0.5285089,85423.0,85422.0,0.15118585]
[1742473873339,0.6335089,85423.0,85422.0,0.15118585]
[1742473873847,0.5335089,85423.0,85422.0,0.15118585]
[1742473874043,0.6335089,85423.0,85422.0,0.15118585]
[1742473874650,0.5335089,85423.0,85422.0,0.15118585]
[1742473874850,0.6335089,85423.0,85422.0,0.03407555]
[1742473875241,0.1371089,85423.0,85422.0,0.15118585]
[1742473875448,0.01,85423.0,85422.0,0.51198585]
[1742473875746,0.01,85423.0,85422.0,0.54828585]
[1742473876647,0.01,85423.0,85422.0,0.55916673]
[1742473876841,0.13965482,85429.0,85428.0,0.1171021]
[1742473877041,0.13965482,85429.0,85428.0,0.2327821]
[1742473877851,0.25675552,85429.0,85428.0,0.2327821]
[1742473878150,0.26575552,85429.0,85428.0,0.2716821]
[1742473879441,0.009,85429.0,85428.0,0.2716821]
[1742473879646,0.11727455,85431.0,85429.0,0.1170993]
[1742473879955,0.11727455,85431.0,85430.0,0.4393]
[1742473880254,0.00017555,85431.0,85430.0,0.5563993]
[1742473880752,0.11727355,85431.0,85430.0,0.5563993]
[1742473881646,0.11727355,85431.0,85430.0,0.5663993]
[1742473882851,0.00017555,85431.0,85430.0,0.5663993]
[1742473883847,0.00017555,85431.0,85430.0,0.5563993]
[1742473885544,0.11727355,85431.0,85430.0,0.5563993]
[1742473885746,0.00017555,85431.0,85430.0,0.5563993]
[1742473886150,0.11727355,85431.0,85430.0,0.5563993]
[1742473887552,0.00017555,85431.0,85430.0,0.5563993]
[1742473888150,0.00117555,85431.0,85430.0,0.5563993]
[1742473889259,0.0585433,85440.0,85439.0,0.1756271]
[1742473889451,0.1756289,85440.0,85439.0,0.2909071]
[1742473890656,0.2142289,85440.0,85439.0,0.2909071]
[1742473890855,0.0981433,85440.0,85439.0,0.2909071]
[1742473891552,0.001,85440.0,85439.0,0.2909071]
[1742473892666,0.001,85440.0,85439.0,0.30189401]
[1742473893356,0.001,85440.0,85439.0,0.2909071]
[1742473893665,0.1180856,85440.0,85439.0,0.2909071]
[1742473894054,0.1926856,85440.0,85439.0,0.2909071]
[1742473895962,0.1926856,85440.0,85439.0,0.3665071]
[1742473896361,0.001,85440.0,85439.0,0.3665071]
[1742473898777,0.13983037,85448.0,85447.0,0.117076]
[1742473898972,0.13983037,85448.0,85447.0,0.592876]
[1742473899162,0.00017555,85448.0,85447.0,0.668676]
[1742473899570,0.11725025,85448.0,85447.0,0.668676]
[1742473900070,0.15655025,85448.0,85447.0,0.3988]
[1742473900260,0.1170884,85439.0,85438.0,0.1170863]
[1742473900464,0.1170884,85439.0,85438.0,0.1548863]
[1742473900665,0.1933884,85439.0,85438.0,0.1928863]
[1742473900866,0.1933884,85439.0,85438.0,0.0758]
[1742473901069,0.1170939,85434.0,85433.0,0.1756402]
[1742473901261,0.1170966,85432.0,85431.0,0.3078938]
[1742473901462,0.1170966,85432.0,85431.0,0.3664414]
[1742473901863,0.1889966,85432.0,85431.0,0.3664414]
[1742473904976,0.0719,85432.0,85431.0,0.3664414]
[1742473905171,0.13965482,85434.0,85433.0,0.1170952]
[1742473905376,0.13965482,85434.0,85433.0,0.2320952]
[1742473906375,0.13965482,85434.0,85433.0,0.5120952]
[1742473906964,0.17495037,85437.0,85436.0,0.1170911]
[1742473907170,0.17495037,85437.0,85436.0,0.3670911]
[1742473907673,0.17495037,85437.0,85436.0,0.4402911]
[1742473908066,0.17495037,85437.0,85436.0,0.8010911]
[1742473911178,0.00017555,85448.0,85447.0,0.117076]
[1742473911484,0.14020796,85451.0,85450.0,0.1170719]
[1742473911781,1e-08,85451.0,85450.0,0.4778719]
[1742473912865,0.11707061,85451.0,85450.0,0.5927919]
[1742473913070,0.03570001,85451.0,85450.0,0.5927919]
[1742473914077,0.03570001,85451.0,85450.0,0.6684919]
[1742473915178,0.0357,85451.0,85450.0,0.6684919]
[1742473915773,0.11723655,85459.0,85453.0,0.0585335]
[1742473916079,0.11723655,85459.0,85457.0,0.4778623]
[1742473916080,0.038,85458.0,85457.0,0.4778623]
[1742473916277,0.194461,85458.0,85457.0,0.60137893]
[1742473917483,0.0774,85458.0,85457.0,0.60137893]
[1742473918168,0.0774,85458.0,85457.0,0.61211855]
[1742473919971,0.038,85458.0,85457.0,0.61211855]
[1742473920278,0.00017555,85459.0,85458.0,0.117061]
[1742473925286,0.00017555,85459.0,85458.0,0.387061]
[1742473927978,0.00017555,85459.0,85458.0,0.424161]
[1742473931878,0.00017555,85459.0,85458.0,0.461161]
[1742473933987,0.11723515,85459.0,85458.0,0.461161]
[1742473934186,0.11723515,85459.0,85455.0,0.11444]
[1742473934187,0.1170637,85456.0,85455.0,0.11444]
[1742473934588,0.0762,85456.0,85455.0,0.2315051]
[1742473934891,0.0762,85456.0,85455.0,0.31758699]
[1742473936185,0.0762,85456.0,85455.0,0.32860931]
[1742473937288,4e-05,85471.0,85465.0,0.1170514]
[1742473937482,4e-05,85471.0,85470.0,0.4778445]
[1742473937681,0.0397,85477.0,85476.0,0.1170363]
[1742473937877,0.17495037,85481.0,85480.0,0.1170308]
[1742473938082,0.17495037,85481.0,85480.0,0.4778308]
[1742473938287,0.20949501,85489.0,85488.0,0.1170199]
[1742473938481,0.33754857,85489.0,85488.0,0.2316199]
[1742473938882,0.12805356,85489.0,85488.0,0.2316199]
[1742473939090,0.12805356,85489.0,85488.0,0.3100199]
[1742473939493,0.11713447,85489.0,85488.0,0.3100199]
[1742473940298,0.19563447,85489.0,85488.0,0.3100199]
[1742473940991,0.23643447,85489.0,85488.0,0.3100199]
[1742473941398,0.07861597,85489.0,85488.0,0.3100199]
[1742473942081,0.19563447,85489.0,85488.0,0.3100199]
[1742473942483,0.19563447,85489.0,85488.0,0.0784]
[1742473942686,0.20563447,85489.0,85488.0,0.15462]
[1742473943389,0.30563447,85489.0,85488.0,0.15462]
[1742473944482,0.1170254,85484.0,85480.0,0.36208]
[1742473944682,0.1170281,85482.0,85481.0,0.1538]
[1742473944887,0.1170281,85482.0,85481.0,0.1170286]
[1742473945192,0.1170308,85480.0,85479.0,0.1755471]
[1742473945389,0.1170308,85480.0,85479.0,0.1729954]
[1742473946386,0.3670308,85480.0,85479.0,0.1729954]
[1742473946582,0.1170308,85480.0,85479.0,0.1729954]
[1742473947897,0.1170404,85473.0,85472.0,0.11721735]
[1742473948397,0.1170404,85473.0,85472.0,0.15631735]
[1742473948596,0.1170404,85473.0,85472.0,0.19771735]
[1742473948786,0.1955404,85473.0,85472.0,0.19771735]
[1742473950384,0.4355404,85473.0,85472.0,0.19771735]
[1742473950589,0.1955404,85473.0,85472.0,0.19771735]
[1742473951394,0.2955404,85473.0,85472.0,0.03927555]
[1742473951601,0.5955404,85473.0,85472.0,0.00017555]
[1742473952096,0.5329404,85473.0,85472.0,0.11721735]
[1742473952302,0.5455404,85473.0,85472.0,0.11721735]
[1742473952492,0.5455404,85473.0,85472.0,0.00017555]
[1742473952795,0.55718521,85473.0,85472.0,0.00017555]
[1742473953395,0.55720623,85473.0,85472.0,0.00017555]
[1742473953591,0.5455404,85473.0,85472.0,0.00017555]
[1742473953796,0.48900622,85473.0,85472.0,0.00017555]
[1742473954097,0.45720622,85473.0,85472.0,0.11721735]
[1742473954295,0.4455404,85473.0,85472.0,0.11721735]
[1742473954907,0.4455404,85473.0,85472.0,0.19681735]
[1742473955103,0.5455404,85473.0,85472.0,0.07977555]
[1742473955398,0.4455404,85473.0,85472.0,0.19681735]
[1742473956204,0.4455404,85473.0,85472.0,0.07977555]
[1742473956906,0.4455404,85473.0,85472.0,0.19681735]
[1742473957803,0.4858404,85473.0,85472.0,0.19681735]
[1742473959201,0.5858404,85473.0,85472.0,0.07977555]
[1742473959507,0.4858404,85473.0,85472.0,0.07977555]
[1742473960198,0.5858404,85473.0,85472.0,0.03877555]
[1742473960505,0.5858404,85473.0,85472.0,0.00017555]
[1742473961100,0.4858404,85473.0,85472.0,0.00017555]
[1742473961708,0.5858404,85473.0,85472.0,0.00017555]
[1742473962202,0.9466404,85473.0,85472.0,0.00017555]
[1742473963106,0.52925964,85473.0,85472.0,0.00017555]
[1742473963297,0.5858404,85473.0,85472.0,0.00017555]
[1742473964001,0.95826887,85473.0,85472.0,0.00017555]
[1742473964198,0.9466404,85473.0,85472.0,0.00017555]
[1742473964893,0.8784404,85473.0,85472.0,0.00017555]
[1742473965099,0.95827165,85473.0,85472.0,0.00017555]
[1742473965506,0.85827165,85473.0,85472.0,0.00017555]
[1742473965698,0.95827165,85473.0,85472.0,0.00017555]
[1742473966405,0.85827165,85473.0,85472.0,0.00017555]
[1742473967299,0.95827165,85473.0,85472.0,0.00017555]
[1742473967501,0.8063404,85473.0,85472.0,0.00017555]
[1742473967702,0.7278404,85473.0,85472.0,0.00017555]
[1742473967910,0.3670404,85473.0,85472.0,0.11721735]
[1742473968104,8e-05,85474.0,85473.0,0.1170404]
[1742473968413,0.1171191,85474.0,85473.0,0.1946404]
[1742473968809,0.1170391,85474.0,85473.0,0.1946404]
[1742473970902,4e-05,85475.0,85474.0,0.1170391]
[1742473971109,4e-05,85475.0,85474.0,0.5542391]
[1742473971812,0.17512345,85477.0,85474.0,0.5542391]